fUST/lending_fUST_20260203
["ID","MTS","AMOUNT","RATE_DAILY","PERIOD"]
[404376746,1770085842418,-19810.1712172,0.00135815,30]
[404376747,1770085842430,-1778.8,0.00136986,120]
[404376748,1770085842439,-613.06,0.00136986,120]
[404376749,1770085842448,-500.0,0.00136986,120]
[404376750,1770085842457,-889.45,0.00136986,120]
[404376751,1770085842465,-1608.55,0.00136986,120]
[404376752,1770085842475,-7479.21,0.00136986,120]
[404376753,1770085842483,-893.05,0.00136986,120]
[404376754,1770085842492,-771.68,0.00136986,120]
[404376755,1770085842501,-150.0,0.00137422,120]
[404376756,1770085842510,-276.036996,0.00137422,120]
[404376757,1770085842519,-402.073993,0.00137422,120]
[404376758,1770085842528,-528.11099,0.00137422,120]
[404376759,1770085842537,-654.147987,0.00137422,120]
[404376760,1770085842547,-780.184984,0.00137422,120]
[404376761,1770085842556,-906.22198,0.00137422,120]
[404376763,1770085842565,-1032.258977,0.00137422,120]
[404376765,1770085842574,-1158.295974,0.00137422,120]
[404376767,1770085842583,-1284.332971,0.00137422,120]
[404376776,1770085842650,-150.32745251,0.00138264,2]
[404376778,1770085842666,-1666.93,0.00138999,2]
[404376780,1770085842676,-3112.10251053,0.00139,120]
[404376782,1770085842684,-1000.0,0.00139999,120]
[404376784,1770085842693,-2000.0,0.0014,120]
[404376786,1770085842702,-1778.8,0.00142465,120]
[404376788,1770085842712,-613.06,0.00142465,120]
[404376790,1770085842721,-500.0,0.00142465,120]
[404376792,1770085842731,-889.45,0.00142465,120]
[404376794,1770085842740,-151.0,0.00142465,120]
[404376796,1770085842748,-1608.55,0.00142465,120]
[404376798,1770085842757,-7479.21,0.00142465,120]
[404376800,1770085842767,-893.05,0.00142465,120]
[404376802,1770085842776,-771.68,0.00142465,120]
[404376804,1770085842784,-151.0,0.00145,120]
[404376806,1770085842793,-151.0,0.00145,120]
[404376808,1770085842802,-151.0,0.00145,120]
[404376810,1770085842811,-151.0,0.00145,120]
[404376812,1770085842819,-151.0,0.00145,120]
[404376814,1770085842828,-292.0,0.00145,120]
[404376816,1770085842837,-1666.93,0.00147944,2]
[404376818,1770085842846,-1778.8,0.00147945,120]
[404376820,1770085842855,-613.06,0.00147945,120]
[404376822,1770085842863,-500.0,0.00147945,120]
[404376823,1770085842872,-889.45,0.00147945,120]
[404376825,1770085842881,-1608.55,0.00147945,120]
[404376827,1770085842891,-7479.21,0.00147945,120]
[404376829,1770085842900,-893.05,0.00147945,120]
[404376831,1770085842909,-771.68,0.00147945,120]
[404376833,1770085842918,-200.0,0.00149999,120]
[404376835,1770085842927,-165.13470443,0.00149999,60]
[404376837,1770085842936,-228.06268375,0.00149999,120]
[404376839,1770085842945,-200.0,0.00149999,120]
[404376841,1770085842954,-1666.93,0.00149999,2]
[404376843,1770085842963,-1666.93,0.00149999,2]
[404376845,1770085842972,-1666.93,0.00149999,2]
[404376847,1770085842980,-1666.93,0.00149999,2]
[404376849,1770085842989,-1666.93,0.00149999,2]
[404376851,1770085842998,-1666.93,0.00149999,2]
[404376853,1770085843007,-1666.93,0.00149999,2]
[404376855,1770085843016,-1666.93,0.00149999,2]
[404376857,1770085843025,-1666.93,0.00149999,2]
[404376859,1770085843034,-1667.10952258,0.00149999,2]
[404376861,1770085843044,-1000.0,0.0015,120]
[404376863,1770085843053,-142345.48098057,0.0015,120]
[404376865,1770085843062,-8987.6536431,0.0015,120]
[404376867,1770085843071,-10000.0,0.0015,2]
[404376869,1770085843079,-172.7,0.0015,60]
[404376871,1770085843088,-151.0,0.0015,120]
[404376873,1770085843098,-200.27,0.00150685,90]
[404376875,1770085843107,-400.010483,0.00151406,120]
[404376877,1770085843116,-4420.2466762,0.00153016,30]
[404376879,1770085843124,-851.52799048,0.00153424,120]
[404376886,1770085843180,-927.27200952,0.00153424,120]
[404376888,1770085843190,-613.06,0.00153424,120]
[404376890,1770085843200,-500.0,0.00153424,120]
[404376892,1770085843209,-670.97503474,0.00153424,120]
[404376894,1770085843223,-218.47496526,0.00153424,120]
[404376896,1770085843231,-1608.55,0.00153424,120]
[404376898,1770085843241,-7479.21,0.00153424,120]
[404376900,1770085843250,-893.05,0.00153424,120]
[404376902,1770085843259,-771.68,0.00153424,120]
[404376904,1770085843268,-292.02615597,0.00155425,120]
[404376906,1770085843276,-237.00887877,0.001555,30]
[404376908,1770085843289,-4763.4956197,0.001555,30]
[404376910,1770085843299,-292.02615597,0.00156192,120]
[404376912,1770085843308,-986.2903487,0.00156854,30]
[404376914,1770085843318,-292.02615597,0.00156932,120]
[404376916,1770085843327,-292.02615597,0.00157699,120]
[404376918,1770085843336,-292.02615597,0.00158438,120]
[404376920,1770085843345,-400.010483,0.00158616,120]
[404376922,1770085843354,-1778.8,0.00158904,120]
[404376924,1770085843363,-613.06,0.00158904,120]
[404376926,1770085843372,-371.80841466,0.00158904,120]
[404376928,1770085843381,-889.45,0.00158904,120]
[404376930,1770085843391,-1608.55,0.00158904,120]
[404376932,1770085843400,-7479.21,0.00158904,120]
[404376934,1770085843412,-893.05,0.00158904,120]
[404376936,1770085843421,-771.68,0.00158904,120]
[404376938,1770085843430,-292.02615597,0.00159205,120]
[404376940,1770085843439,-292.02615597,0.00159945,120]
[404376942,1770085843448,-10000.0,0.0016,2]
[404376944,1770085843457,-292.02615597,0.00160685,120]
[404376946,1770085843466,-292.02615597,0.00161452,120]
[404376948,1770085843475,-292.02615597,0.00162192,120]
[404376950,1770085843484,-150.32745251,0.00162898,2]
[404376952,1770085843493,-292.02615597,0.00162959,120]
[404376954,1770085843502,-292.02615597,0.00163699,120]
[404376957,1770085843511,-1778.8,0.00164383,120]
[404376959,1770085843522,-613.06,0.00164383,120]
[404376962,1770085843531,-889.45,0.00164383,120]
[404376965,1770085843539,-1608.55,0.00164383,120]
[404376967,1770085843549,-6261.08420689,0.00164383,120]
[404376970,1770085843561,-1218.12579311,0.00164383,120]
[404376972,1770085843570,-893.05,0.00164383,120]
[404376974,1770085843579,-771.68,0.00164383,120]
[404376976,1770085843590,-400.010483,0.00165826,120]
[404376978,1770085843599,-1778.8,0.00169863,120]
[404376980,1770085843608,-613.06,0.00169863,120]
[404376982,1770085843617,-889.45,0.00169863,120]
[404376984,1770085843626,-1608.55,0.00169863,120]
[404376986,1770085843635,-7479.21,0.00169863,120]
[404376988,1770085843644,-893.05,0.00169863,120]
[404376989,1770085843654,-771.68,0.00169863,120]
[404376991,1770085843663,-1516.11676508,0.0017,2]
[404376994,1770085843674,-800.64200902,0.0017,2]
[404377107,1770085844761,-500.0,0.00054794,120]
[404377109,1770085844772,-500.0,0.00060273,120]
[404377111,1770085844781,-500.0,0.00065753,120]
[404377113,1770085844790,-6718.0,0.0017,2]
[404377115,1770085844803,-965.2412259,0.0017,2]
[404377117,1770085844812,-151.0,0.0017,120]
[404377119,1770085844821,-3035.23735432,0.00171778,120]
[404377197,1770085845573,-500.0,0.00071232,120]
[404377199,1770085845583,-500.0,0.00076712,120]
[404377201,1770085845591,-1745.87254968,0.00171778,120]
[404377203,1770085845600,-400.010483,0.00173035,120]
[404377205,1770085845610,-150.32745251,0.00175215,2]
[404377207,1770085845619,-1506.17677085,0.00175342,120]
[404377302,1770085846615,-150.0,0.0007353,120]
[404377303,1770085846625,-218.827134,0.0007353,120]
[404377304,1770085846634,-500.0,0.00082191,120]
[404377305,1770085846643,-500.0,0.00087671,120]
[404377306,1770085846653,-500.0,0.0009315,120]
[404377307,1770085846663,-500.0,0.0009863,120]
[404377308,1770085846672,-272.62322915,0.00175342,120]
[404377310,1770085846681,-613.06,0.00175342,120]
[404377312,1770085846690,-1608.55,0.00175342,120]
[404377314,1770085846701,-1397.85078108,0.00175342,120]
[404377316,1770085846715,-6081.35921892,0.00175342,120]
[404377318,1770085846726,-893.05,0.00175342,120]
[404377320,1770085846735,-771.68,0.00175342,120]
[404377322,1770085846745,-200.0,0.00177959,120]
[404377323,1770085846754,-10000.0,0.0018,2]
[404377324,1770085846763,-400.010483,0.00180245,120]
[404377325,1770085846773,-1778.93194266,0.00180821,120]
[404377326,1770085846783,-613.18373757,0.00180821,120]
[404377327,1770085846792,-1608.69543701,0.00180821,120]
[404377329,1770085846808,-7479.36640662,0.00180821,120]
[404377331,1770085846818,-893.12013106,0.00180821,120]
[404377333,1770085846827,-771.71749927,0.00180821,120]
[404377335,1770085846836,-400.010483,0.00187455,120]
[404377337,1770085846848,-2000.0,0.0019,120]
[404377339,1770085846858,-10000.0,0.0019,2]
[404377341,1770085846867,-400.010483,0.00194665,120]
[404377343,1770085846877,-5711.736403,0.001988,120]
[404377345,1770085846888,-4288.263597,0.001988,120]
[404377347,1770085846897,-500.0,0.00199464,120]
[404377349,1770085846908,-150.32745251,0.00199849,2]
[404377351,1770085846917,-1299.26534693,0.002,120]
[404377353,1770085846927,-2000.0,0.002,120]
[404377355,1770085846937,-150.0,0.002,60]
[404377357,1770085846947,-463.6790563,0.002,120]
[404377359,1770085846956,-1000.0,0.002,120]
[404377361,1770085846966,-200.0,0.002,120]
[404377363,1770085846975,-1000.0,0.002,120]
[404377366,1770085846985,-3380.0,0.002,105]
[404377367,1770085846994,-1978.46454725,0.002,2]
[404377370,1770085847006,-545.5,0.002,2]
[404377372,1770085847017,-1570.34,0.002,2]
[404378746,1770085863131,500.0,0.00013273,2]
[404378747,1770085863163,505.64868738,0.00013699,2]
[404378748,1770085863192,1000.0,0.00013821,2]
[404378749,1770085863225,500.15937086,0.00013699,2]
[404378750,1770085863254,158.55644016,0.00013699,2]
[404378751,1770085863283,354.14415188,0.00014368,2]
[404378753,1770085863305,1145.85584812,0.00014368,2]
[404378754,1770085863352,335.58491365,0.00014916,2]
[404378755,1770085863382,402.67526704,0.00014247,2]
[404378756,1770085863455,500.0,0.00013699,2]
[404378757,1770085863523,500.0,0.00013699,2]
[404378758,1770085863586,1000.0,0.00014247,2]
[404378759,1770085863616,500.0,0.00013699,2]
[404378760,1770085863645,500.0,0.00013699,2]
[404378761,1770085863674,443.51307087,0.00014795,2]
[404378762,1770085863708,1500.0,0.00014795,2]
[404378763,1770085863738,1131.08756037,0.00014247,2]
[404378764,1770085863766,1000.0,0.00014247,2]
[404378765,1770085863797,1041.29333995,0.00015342,2]
[404378766,1770085863821,958.70666005,0.00015342,2]
[404378767,1770085863857,2615.53409542,0.0001589,2]
[404378768,1770085866583,500.0,0.00013699,2]
[404378769,1770085866631,1000.0,0.00014247,2]
[404378770,1770085867041,503.70808855,0.00013273,2]
[404378771,1770085867339,500.0,0.00013273,2]
[404378772,1770085867393,1000.0,0.00013821,2]
[404378773,1770085867638,500.0,0.00013273,2]
[404378774,1770085867695,175.84126355,0.00013821,2]
[404378775,1770085869728,500.51440333,0.00013699,2]
[404378776,1770085870142,158.75349077,0.00013699,2]
[404378777,1770085870572,500.0,0.00013273,2]
[404378778,1770085871115,500.0,0.00013273,2]
[404378779,1770085871632,500.0,0.00013699,2]
[404378780,1770085871683,1000.0,0.00014247,2]
[404378781,1770085871758,1500.0,0.00014795,2]
[404378782,1770085871800,459.22058997,0.00015342,2]
[404378783,1770085873089,500.0,0.00013273,2]
[404378784,1770085873143,1000.0,0.00013821,2]
[404378785,1770085873941,500.0,0.00013699,2]
[404378786,1770085873973,501.32902716,0.00013699,2]
[404378787,1770085874002,204.35122522,0.00014247,2]
[404378788,1770085874024,296.33564374,0.00014247,2]
[404378789,1770085876641,500.0,0.00013699,2]
[404378790,1770085876690,1000.0,0.00014247,2]
[404378791,1770085876737,500.0,0.00013699,2]
[404378792,1770085876792,1000.0,0.00014247,2]
[404378793,1770085877591,300.0,0.00013673,2]
[404378794,1770085877642,600.0,0.00014221,2]
[404378795,1770085877758,500.0,0.00013273,2]
[404378796,1770085877888,300.0,0.00014768,2]
[404378797,1770085877916,1000.0,0.00013821,2]
[404378798,1770085878086,500.0,0.00013273,2]
[404378808,1770085922867,500.0,0.00013699,2]
[404378809,1770085922914,375.89929405,0.00014247,2]
[404378810,1770085923188,500.0,0.00013699,2]
[404378811,1770085923225,1126.87727258,0.00014247,2]
[404378812,1770085923268,317.03980867,0.00013273,2]
[404378813,1770085923296,1002.37216285,0.00014247,2]
[404378814,1770085923343,500.0,0.00013699,2]
[404378815,1770085923378,243.91901584,0.00013699,2]
[404378816,1770085925218,500.0,0.00013273,2]
[404378817,1770085925259,1000.0,0.00013821,2]
[404378818,1770085925315,1500.0,0.00014368,2]
[404378819,1770085925375,744.94253098,0.00014916,2]
[404378822,1770085928903,-697.47321328,0.00014916,2]
[404378823,1770085930493,-302.58027936,0.00014916,2]
[404378824,1770085939715,-255.00397638,0.00014916,2]
[404378829,1770085983910,500.0,0.00013273,2]
[404378831,1770085983942,1000.0,0.00013821,2]
[404378835,1770085984006,1500.0,0.00014368,2]
[404378838,1770085984061,220.82316353,0.00014916,2]
[404378840,1770085984088,500.0,0.00013699,2]
[404378844,1770085984151,500.0,0.00014247,2]
[404378845,1770085984291,272.68459961,0.00013273,2]
[404378846,1770085984319,500.0,0.00013699,2]
[404378847,1770085984375,1000.0,0.00014247,2]
[404378848,1770085984401,500.0,0.00013699,2]
[404378849,1770085984427,500.0,0.00013273,2]
[404378850,1770085984455,638.54957235,0.00014795,2]
[404378851,1770085984480,217.74308014,0.00013273,2]
[404378852,1770085984505,1000.0,0.00013821,2]
[404378853,1770085984531,1150.20958437,0.00014368,2]
[404378854,1770085984552,349.79041563,0.00014368,2]
[404378855,1770085984576,500.0,0.00013699,2]
[404378856,1770085984701,287.71384729,0.00013699,2]
[404378857,1770085984727,500.0,0.00013273,2]
[404378858,1770085984825,1000.0,0.00013821,2]
[404378859,1770085984851,500.0,0.00014368,2]
[404378860,1770085985452,-596.42488653,0.00015464,2]
[404378861,1770085986746,500.0,0.00013273,2]
[404378862,1770085986795,1000.0,0.00013821,2]
[404378863,1770085986855,1500.0,0.00014368,2]
[404378864,1770085987181,500.0,0.00013699,2]
[404378865,1770085987217,784.76215271,0.00014247,2]
[404378866,1770085987409,368.32499889,0.00013699,2]
[404378870,1770086055715,-2384.40641043,0.0001314,2]
[404378871,1770086055758,-500.09364203,0.00013273,2]
[404378872,1770086055788,-500.0,0.00013273,2]
[404378873,1770086055819,-500.0,0.00013699,2]
[404378874,1770086055851,-500.0,0.00013699,2]
[404378875,1770086055881,-500.0,0.00013699,2]
[404378876,1770086061310,-501.74182951,0.00013699,2]
[404378877,1770086061345,-500.0,0.00013699,2]
[404378878,1770086061381,-1000.0,0.00013821,2]
[404378879,1770086061413,-500.22448883,0.00014247,2]
[404378880,1770086061446,-498.67567994,0.00014247,2]
[404378881,1770086061482,-589.45287422,0.00014247,2]
[404378882,1770086061518,-1002.99878118,0.00014247,2]
[404378883,1770086064271,-1500.0,0.00014368,2]
[404378884,1770086064418,-2000.0,0.00014916,2]
[404378919,1770086140638,-500.0,0.00013273,2]
[404378920,1770086140659,-500.0,0.00013273,2]
[404378921,1770086151296,150.0,0.00027415,120]
[404378922,1770086151714,150.0,0.00029088,120]
[404378927,1770086170104,150.0,0.00029654,120]
[404378928,1770086175525,-300.0,0.00013698,2]
[404378929,1770086175545,-200.0,0.00013699,2]
[404378930,1770086193624,-300.0,0.00013699,2]
[404378931,1770086193648,-200.0,0.00013699,2]
[404378932,1770086195778,150.0,0.00029374,120]
[404378933,1770086211243,-300.0,0.00013699,2]
[404378934,1770086211269,-165.72224045,0.00013699,2]
[404378935,1770086211295,-500.0,0.00013699,2]
[404378936,1770086211322,-227.70431209,0.00013699,2]
[404378937,1770086211354,-500.0,0.00013699,2]
[404378938,1770086211381,-500.0,0.00013699,2]
[404378939,1770086211410,-194.91890819,0.00013699,2]
[404378940,1770086211436,-1000.0,0.00013821,2]
[404378941,1770086211463,-462.83517911,0.00013821,2]
[404378942,1770086211490,-1114.45295945,0.00014247,2]
[404378943,1770086211804,-68.74280142,0.00014247,2]
[404378944,1770086211832,-500.0,0.00014247,2]
[404378945,1770086211860,-768.71089634,0.00014247,2]
[404378946,1770086211887,-500.0,0.00014247,2]
[404378947,1770086211919,-505.4124048,0.00014247,2]
[404378948,1770086211944,-1500.0,0.00014368,2]
[404378949,1770086211972,-495.3158073,0.00014916,2]
[404378950,1770086214044,-0.01,0.00015342,2]
[404378951,1770086217120,-0.02,0.00015342,2]
[404378952,1770086217315,-0.04,0.00015342,2]
[404378953,1770086220219,-0.08,0.00015342,2]
[404378954,1770086220386,-0.16,0.00015342,2]
[404378955,1770086223303,-500.0,0.00013273,2]
[404378956,1770086223332,-160.80663478,0.00013699,2]
[404378957,1770086223359,-567.81536464,0.00013699,2]
[404378958,1770086223583,-114.5016683,0.00013273,2]
[404378959,1770086223618,-385.4983317,0.00013273,2]
[404378960,1770086223646,-502.06898287,0.00013821,2]
[404378961,1770086223675,-1000.0,0.00013821,2]
[404378962,1770086223701,-1610.11293928,0.00014368,2]
[404378963,1770086223824,-500.0,0.00013273,2]
[404378964,1770086223833,-500.0,0.00013273,2]
[404378965,1770086223843,-500.0,0.00013273,2]
[404378966,1770086223852,-502.54993704,0.00013821,2]
[404378967,1770086223861,-1000.0,0.00013821,2]
[404378968,1770086223871,-2.09955526,0.00013821,2]
[404378969,1770086226289,-537.781784,0.00013273,2]
[404378970,1770086226316,-500.13693636,0.00013699,2]
[404378971,1770086226348,-500.0,0.00013699,2]
[404378972,1770086226376,-501.39940942,0.00013699,2]
[404378973,1770086226407,-498.51619479,0.00013821,2]
[404378974,1770086226435,-1000.0,0.00014247,2]
[404378975,1770086226465,-1424.34135086,0.00014368,2]
[404378976,1770086226567,-75.65864914,0.00014368,2]
[404378977,1770086229423,-500.0,0.00013699,2]
[404378978,1770086229459,-598.09902878,0.00014795,2]
[404378979,1770086229495,-348.86206425,0.00014916,2]
[404378980,1770086229569,-7106.08781394,0.00015342,2]
[404378981,1770086231522,-501.01658452,0.00013699,2]
[404378982,1770086231559,-245.97940702,0.00013699,2]
[404378983,1770086231597,-2893.60218606,0.00015342,2]
[404378984,1770086231640,-300.0,0.00015441,2]
[404378985,1770086231769,-2118.8136448,0.00015442,2]
[404378987,1770086247833,-5000.0,0.00013562,2]
[404378988,1770086247873,-0.01,0.00013699,2]
[404378989,1770086253775,-499.99,0.00013699,2]
[404378990,1770086253803,-500.0,0.00013699,2]
[404378991,1770086253829,-200.2872393,0.00014457,2]
[404378992,1770086253856,-2957.4591662,0.00015442,2]
[404378993,1770086253912,-1684.537189,0.00015442,2]
[404378997,1770086280118,156.51,9.99e-05,2]
[404379020,1770086407811,-151.0,0.0001314,2]
[404379021,1770086407838,-549.31939467,0.00013273,2]
[404379022,1770086407865,-500.0,0.00013273,2]
[404379023,1770086407890,-398.80575951,0.00013273,2]
[404379024,1770086407917,-400.92318337,0.00013273,2]
[404379030,1770086468397,-465.47032528,0.0001314,2]
[404379031,1770086472722,-500.0,0.0001314,2]
[404379032,1770086474303,-291.92606223,0.0001314,2]
[404379033,1770086477602,-593.74174439,0.0001314,2]
[404379034,1770086479343,-296.17314428,0.0001314,2]
[404379035,1770086481564,-154.46235567,0.0001314,2]
[404379037,1770086485761,-153.22554625,0.0001314,2]
[404379038,1770086487858,-352.9441947,0.0001314,2]
[404379039,1770086490485,-300.0,0.0001314,2]
[404379040,1770086495475,-300.0,0.0001314,2]
[404379041,1770086497847,-175.92076688,0.0001314,2]
[404379042,1770086499321,-387.62315187,0.0001314,2]
[404379048,1770086550533,1000.0,0.00039985,30]
[404379049,1770086550754,1000.0,0.00039985,30]
[404379050,1770086551047,1000.0,0.00039985,30]
[404379098,1770086811068,-159.99057651,0.00013272,2]
[404379099,1770086811094,-500.0,0.00013272,2]
[404379100,1770086811118,-352.9441947,0.00013272,2]
[404379101,1770086811143,-500.0,0.00013272,2]
[404379102,1770086811167,-500.0,0.00013272,2]
[404379103,1770086811193,-500.0,0.00013272,2]
[404379104,1770086811218,-478.7724661,0.00013272,2]
[404379105,1770086811246,-500.0,0.00013272,2]
[404379106,1770086811272,-500.0,0.00013272,2]
[404379107,1770086811296,-500.0,0.00013272,2]
[404379108,1770086811322,-500.0,0.00013272,2]
[404379109,1770086811347,-500.0,0.00013272,2]
[404379110,1770086811371,-500.0,0.00013272,2]
[404379111,1770086811396,-500.0,0.00013272,2]
[404379112,1770086811420,-500.0,0.00013272,2]
[404379113,1770086811443,-500.0,0.00013272,2]
[404379114,1770086811467,-365.36824201,0.00013272,2]
[404379115,1770086811494,-500.0,0.00013272,2]
[404379116,1770086811518,-174.49184372,0.00013272,2]
[404379117,1770086811543,-500.0,0.00013272,2]
[404379118,1770086811580,-500.0,0.00013272,2]
[404379119,1770086811609,-500.0,0.00013272,2]
[404379120,1770086811635,-500.0,0.00013272,2]
[404379121,1770086811661,-500.0,0.00013272,2]
[404379122,1770086811687,-500.0,0.00013272,2]
[404379123,1770086811711,-500.0,0.00013272,2]
[404379124,1770086811738,-500.0,0.00013272,2]
[404379125,1770086811762,-500.0,0.00013272,2]
[404379126,1770086811787,-500.0,0.00013272,2]
[404379127,1770086811811,-500.0,0.00013272,2]
[404379128,1770086811836,-500.0,0.00013272,2]
[404379129,1770086811860,-500.0,0.00013272,2]
[404379130,1770086811887,-188.32398975,0.00013272,2]
[404379131,1770086811912,-500.0,0.00013272,2]
[404379132,1770086811938,-500.0,0.00013272,2]
[404379133,1770086811962,-500.0,0.00013272,2]
[404379134,1770086811986,-500.0,0.00013272,2]
[404379135,1770086812011,-300.0,0.00013272,2]
[404379136,1770086812034,-300.0,0.00013272,2]
[404379137,1770086812057,-300.0,0.00013272,2]
[404379138,1770086812081,-1200.0,0.00013272,2]
[404379139,1770086812104,-300.0,0.00013272,2]
[404379140,1770086812129,-150.0,0.00013272,2]
[404379141,1770086812152,-148.55656113,0.00013273,2]
[404379142,1770086812176,-182.0085826,0.00013273,2]
[404379143,1770086812198,-485.27032989,0.00013273,2]
[404379144,1770086812222,-500.0,0.00013273,2]
[404379145,1770086812345,-465.47032528,0.00013273,2]
[404379146,1770086812370,-500.0,0.00013273,2]
[404379147,1770086812393,-500.0,0.00013273,2]
[404379148,1770086812417,-500.0,0.00013273,2]
[404379149,1770086812442,-500.0,0.00013273,2]
[404379150,1770086812465,-500.0,0.00013273,2]
[404379151,1770086812489,-948.80288831,0.00013273,2]
[404379152,1770086812557,-25000.0,0.00013273,2]
[404379153,1770086812937,-24051.19711169,0.00013273,2]
[404379154,1770086812965,-500.0,0.00013273,2]
[404379155,1770086812991,-448.80288831,0.00013536,2]
[404379156,1770086814023,-151.19711169,0.00013536,2]
[404379157,1770086814050,-500.0,0.00013547,2]
[404379158,1770086814076,-9322.32517494,0.00013597,2]
[404379159,1770086814102,-300.0,0.00013673,2]
[404379160,1770086814127,-328.98948476,0.00013695,2]
[404379161,1770086814151,-507.45794699,0.00013699,2]
[404379162,1770086814176,-500.0,0.00013699,2]
[404379163,1770086814200,-500.0,0.00013699,2]
[404379164,1770086814227,-533.0826609,0.00013699,2]
[404379165,1770086814253,-500.0,0.00013699,2]
[404379166,1770086814278,-500.69178235,0.00013699,2]
[404379167,1770086814302,-500.0,0.00013699,2]
[404379168,1770086814327,-501.10301267,0.00013699,2]
[404379169,1770086814351,-500.0,0.00013699,2]
[404379170,1770086814374,-500.0,0.00013699,2]
[404379171,1770086814398,-500.0,0.00013699,2]
[404379172,1770086814422,-501.42157305,0.00013699,2]
[404379173,1770086814445,-500.9539058,0.00013699,2]
[404379174,1770086814470,-501.83872597,0.00013699,2]
[404379175,1770086814495,-500.0,0.00013699,2]
[404379176,1770086814524,-500.0,0.00013699,2]
[404379177,1770086814551,-400.43888514,0.00013699,2]
[404379178,1770086814575,-500.7604021,0.00013699,2]
[404379179,1770086814603,-247.47386822,0.00013699,2]
[404379180,1770086814627,-500.0,0.00013699,2]
[404379181,1770086814651,-500.0,0.00013699,2]
[404379182,1770086814675,-196.66522221,0.00013699,2]
[404379183,1770086814699,-302.0,0.00013699,2]
[404379184,1770086814722,-503.46259068,0.00013699,2]
[404379185,1770086814747,-500.0,0.00013699,2]
[404379186,1770086814769,-500.0,0.00013699,2]
[404379187,1770086814792,-229.67432906,0.00013699,2]
[404379188,1770086814815,-403.76897884,0.00013821,2]
[404379189,1770086814840,-1000.0,0.00013821,2]
[404379190,1770086814865,-566.69434463,0.00013821,2]
[404379193,1770086875290,-1236.47108161,0.0001314,2]
[404379223,1770087004341,2095.75,9e-05,2]
[404379224,1770087004902,2095.75,9.1e-05,2]
[404379225,1770087005472,2095.75,9.1e-05,2]
[404379226,1770087005929,2095.75,9.2e-05,2]
[404379227,1770087006483,1460.5,9.3e-05,2]
[404379228,1770087006510,635.25,9.3e-05,2]
[404379229,1770087007052,2095.75,9.4e-05,2]
[404379230,1770087007629,2095.75,9.5e-05,2]
[404379231,1770087008122,2095.75,9.6e-05,2]
[404379232,1770087008602,2095.75,9.6e-05,2]
[404379234,1770087009080,2095.75,9.7e-05,2]
[404379237,1770087009644,2095.75,9.8e-05,2]
[404379239,1770087010306,1617.01,9.9e-05,2]
[404379240,1770087010330,478.74,9.9e-05,2]
[404379241,1770087010896,2095.75,0.0001,2]
[404379242,1770087011467,2095.75,0.0001,2]
[404379243,1770087012035,2095.75,0.000101,2]
[404379244,1770087012506,2095.75,0.000102,2]
[404379245,1770087013071,2095.75,0.000103,2]
[404379246,1770087013545,2095.75,0.000104,2]
[404379249,1770087014011,2095.75,0.000105,2]
[404379250,1770087014582,2095.75,0.000105,2]
[404379251,1770087015151,2095.75,0.000106,2]
[404379252,1770087015630,2095.75,0.000107,2]
[404379253,1770087016182,2095.75,0.000108,2]
[404379254,1770087016770,2095.75,0.000109,2]